bitfinex-derivatives/quotes_ETHF0:USTF0_20260305
["timestamp","ask_amount","ask_price","bid_price","bid_amount"]
[1772720536978,5.80560026,2117.6,2116.7,5.58606902]
[1772720538180,0.00387744,2117.6,2116.7,5.58606902]
[1772720538981,5.36271762,2117.6,2116.7,5.58606902]
[1772720539180,5.36271762,2117.6,2116.9,5.46664682]
[1772720539892,5.35884018,2117.9,2116.9,5.46664682]
[1772720540590,5.35884018,2117.9,2117.0,5.46664682]
[1772720540791,5.36389222,2117.9,2117.0,0.00488629]
[1772720542188,5.35884018,2117.7,2117.0,0.00488629]
[1772720542389,5.35884018,2117.7,2116.5,5.46664682]
[1772720542789,5.35884018,2117.7,2116.1,5.46664682]
[1772720543190,5.35884018,2117.5,2116.1,5.46664682]
[1772720543492,5.35884018,2117.5,2116.1,5.47038426]
[1772720544489,5.35884018,2117.5,2116.3,5.46664682]
[1772720546194,5.35884018,2117.5,2116.4,27.83464682]
[1772720547085,5.35884018,2117.5,2116.5,5.01126979]
[1772720550894,5.59494018,2117.5,2116.5,5.01126979]
[1772720551101,5.59494018,2117.5,2116.6,5.01126979]
[1772720551502,5.35884018,2117.5,2116.6,5.01126979]
[1772720553401,5.35884018,2117.5,2116.3,5.01126979]
[1772720553708,5.34426394,2117.3,2116.3,5.01126979]
[1772720553896,5.34426394,2117.5,2116.5,5.01126979]
[1772720554496,5.34426394,2117.5,2116.5,27.36226979]
[1772720554705,5.34426394,2117.5,2116.6,5.01126979]
[1772720555202,10.67323667,2117.4,2116.6,5.01126979]
[1772720555397,5.34426394,2117.4,2116.6,5.01126979]
[1772720555598,5.34426394,2117.6,2116.6,5.01126979]
[1772720556806,5.34426394,2117.6,2116.7,5.01126979]
[1772720557005,5.34426394,2117.4,2116.7,5.01126979]
[1772720560607,9.26313709,2117.8,2117.0,5.01126979]
[1772720560803,11.11218713,2117.7,2117.0,5.01126979]
[1772720561010,5.34426394,2117.7,2117.0,5.01126979]
[1772720562407,5.34931598,2117.9,2117.0,5.01126979]
[1772720562608,5.34931598,2117.9,2117.2,5.01126979]
[1772720562908,5.34931598,2117.9,2117.3,5.01126979]
[1772720564911,5.34426394,2117.7,2117.2,22.363]
[1772720565303,5.34426394,2117.7,2117.2,27.37426979]
[1772720565611,5.34931598,2117.9,2117.3,5.01126979]
[1772720565806,0.00505204,2117.9,2117.3,5.01126979]
[1772720567611,5.34931598,2117.9,2117.3,5.01126979]
[1772720568205,5.34931598,2117.9,2117.3,22.362]
[1772720568611,5.34931598,2117.9,2117.1,27.37326979]
[1772720569007,5.34931598,2117.9,2117.2,5.12149238]
[1772720569410,4.98154851,2118.3,2117.4,5.12149238]
[1772720569912,4.98154851,2118.3,2117.3,0.23611]
[1772720569913,4.98154851,2118.3,2117.5,5.12149238]
[1772720570113,4.98154851,2118.3,2117.6,22.363]
[1772720570307,4.98154851,2118.3,2117.5,27.48549238]
[1772720570503,4.98154851,2118.1,2117.5,22.36734726]
[1772720570715,4.98154851,2118.1,2117.5,22.364]
[1772720571312,4.98154851,2118.1,2117.5,27.48549238]
[1772720571615,4.98154851,2118.1,2117.5,27.48898729]
[1772720571815,0.00431303,2118.3,2117.6,5.35757238]
[1772720572010,4.98586154,2118.3,2117.5,0.00349491]
[1772720572318,4.98154851,2118.1,2117.5,5.12498729]
[1772720575513,4.98154851,2118.1,2117.5,0.00349491]
[1772720575818,4.98154851,2118.1,2117.1,22.61012]
[1772720576112,4.98154851,2117.9,2117.1,27.73161238]
[1772720576422,4.98154851,2117.9,2117.2,5.12149238]
[1772720576816,4.98154851,2117.9,2117.2,5.1252965]
[1772720577414,4.98154851,2117.9,2117.2,0.00380412]
[1772720577815,4.98154851,2117.9,2117.2,5.1252965]
[1772720578016,4.98586154,2118.3,2117.4,5.12149238]
[1772720578219,0.00431303,2118.3,2117.6,5.12149238]
[1772720578420,0.00431303,2118.3,2117.8,5.12149238]
[1772720579323,13.725,2119.1,2117.7,22.62706]
[1772720579324,4.98154851,2118.9,2118.0,5.12149238]
[1772720580419,4.98154851,2119.1,2118.4,5.12149238]
[1772720580622,4.98154851,2119.1,2118.5,5.12149238]
[1772720581126,4.98154851,2119.7,2118.5,5.12149238]
[1772720581427,4.98154851,2119.5,2118.5,5.12149238]
[1772720582919,4.98154851,2119.5,2118.6,22.428]
[1772720583118,4.98154851,2119.5,2118.1,40.8]
[1772720583314,0.23588,2119.4,2118.2,5.12149238]
[1772720583520,4.98154851,2119.3,2118.2,27.55349238]
[1772720583718,4.98154851,2119.3,2118.3,5.12149238]
[1772720583923,4.98154851,2119.5,2118.5,5.12149238]
[1772720584323,4.98154851,2119.5,2118.5,27.55849238]
[1772720584518,5.21741851,2119.5,2118.1,45.92149238]
[1772720584723,4.98154851,2119.1,2117.9,22.441]
[1772720585323,4.98154851,2119.1,2117.9,27.56249238]
[1772720585924,4.98154851,2118.9,2117.9,5.12149238]
[1772720586124,4.98154851,2118.9,2117.8,5.12149238]
[1772720586527,4.98154851,2118.9,2117.8,5.35754238]
[1772720587822,4.98154851,2118.9,2117.6,27.58349238]
[1772720588026,4.98154851,2118.9,2117.7,5.12149238]
[1772720588330,4.98154851,2118.7,2117.7,5.12149238]
[1772720592032,4.98154851,2118.7,2117.7,5.35755238]
[1772720592928,4.98154851,2118.7,2117.7,5.12149238]
[1772720593128,4.98154851,2118.7,2117.8,22.493]
[1772720593472,4.98154851,2118.7,2117.7,5.12149238]
[1772720593930,4.98154851,2118.5,2117.7,5.12149238]
[1772720596446,4.98154851,2118.5,2117.5,5.12149238]
[1772720597643,4.98154851,2118.1,2117.2,0.00380412]
[1772720597844,4.98758041,2118.1,2117.2,0.00380412]
[1772720598343,4.98154851,2117.9,2117.2,0.00380412]
[1772720598544,4.98154851,2117.9,2117.2,5.1252965]
[1772720599247,5.41953674,2119.3,2118.7,5.80446]
[1772720599544,20.6049552,2121.2,2118.7,5.80446]
[1772720599545,4.68804549,2121.2,2120.1,4.54953651]
[1772720599744,4.68804549,2121.0,2120.2,22.514]
[1772720599938,4.68804549,2121.0,2120.2,27.06353651]
[1772720600137,4.68804549,2121.0,2120.2,27.06700335]
[1772720600345,11.9451874,2120.9,2120.3,10.8123448]
[1772720600639,4.68804549,2120.8,2120.4,6.26280829]
[1772720600841,4.68804549,2120.8,2120.5,5.49087843]
[1772720601045,4.68804549,2120.8,2120.2,0.00346684]
[1772720602743,4.68804549,2120.6,2119.8,3.90078312]
[1772720602939,4.68804549,2120.4,2119.3,4.54953651]
[1772720603442,11.9451874,2120.3,2119.5,4.54953651]
[1772720603945,11.9451874,2120.3,2119.5,4.55391724]
[1772720606049,4.68804549,2120.7,2119.6,4.54953651]
[1772720606252,4.68804549,2120.7,2119.7,5.09365402]
[1772720606444,5.23528426,2120.5,2119.5,5.09803475]
[1772720606749,5.23528426,2120.5,2119.1,5.09365402]
[1772720606950,5.23528426,2120.3,2119.1,27.78565402]
[1772720607247,5.23528426,2120.3,2119.1,27.79165402]
[1772720607641,5.23528426,2120.3,2119.1,27.79664727]
[1772720608448,5.23528426,2120.3,2119.2,5.09365402]
[1772720608748,5.23528426,2120.1,2119.2,5.09365402]
[1772720609549,5.23528426,2119.9,2119.2,5.09365402]
[1772720610751,5.23528426,2119.9,2119.1,0.00499325]
[1772720611050,5.23528426,2119.7,2118.8,27.86565402]
[1772720611445,11.9451874,2119.6,2118.9,5.09365402]
[1772720611953,11.9451874,2119.6,2118.9,5.09938122]
[1772720612350,11.9451874,2119.6,2119.0,5.09365402]
[1772720612750,5.23528426,2119.5,2118.9,22.8117272]
[1772720612956,5.24099689,2119.5,2118.9,22.8117272]
[1772720613155,5.24099689,2119.5,2118.9,27.90538122]
[1772720615758,0.00571263,2119.5,2119.0,11.32820723]
[1772720615962,5.23528426,2119.8,2119.2,5.09365402]
[1772720616153,2.58656394,2119.7,2119.3,11.3272119]
[1772720616357,2.58656394,2119.7,2119.3,5.09365402]
[1772720616759,5.23528426,2119.6,2118.9,0.0057272]
[1772720616961,5.23528426,2119.5,2118.9,0.0057272]
[1772720617362,2.59209116,2119.6,2118.9,5.09938122]
[1772720617363,2.58656394,2119.4,2118.9,5.09938122]
[1772720617556,5.23528426,2119.3,2118.9,0.0057272]
[1772720617757,5.23528426,2119.3,2118.6,22.902]
[1772720617952,5.23528426,2119.1,2118.6,22.902]
[1772720618752,5.23528426,2119.1,2118.6,5.09824485]
[1772720618952,5.23528426,2118.9,2118.6,22.929]
[1772720619152,5.23528426,2118.9,2118.6,18.54696524]
[1772720619558,7.8218482,2118.9,2118.6,18.54696524]
[1772720620157,5.23528426,2118.8,2118.3,8.99443714]
[1772720620362,5.23528426,2118.8,2118.3,5.09365402]
[1772720620562,5.23528426,2118.8,2118.4,22.957]
[1772720620757,5.23528426,2118.8,2118.3,5.09365402]
[1772720620958,5.23528426,2118.6,2118.2,28.05765402]
[1772720621156,5.23528426,2118.6,2118.2,0.00375895]
[1772720621353,5.23528426,2118.4,2118.2,0.00375895]
[1772720622565,5.23528426,2119.1,2118.2,0.00375895]
[1772720623765,0.23589,2119.3,2117.9,3.90078312]
[1772720623766,5.23528426,2118.9,2117.9,3.90078312]
[1772720623961,5.23528426,2118.9,2117.8,10.96186093]
[1772720623962,5.47122426,2118.9,2117.8,23.013]
[1772720624265,5.23528426,2118.7,2117.8,23.013]
[1772720624964,5.23528426,2118.5,2117.8,0.0050555]
[1772720625166,5.23528426,2118.5,2117.8,23.0330555]
[1772720625364,2.58656394,2118.4,2117.8,23.0330555]
[1772720625561,5.23528426,2118.3,2117.8,0.0050555]
[1772720627263,2.58656394,2118.4,2117.8,5.09870952]
[1772720627463,5.23528426,2118.7,2117.8,5.09870952]
[1772720627971,5.23528426,2118.7,2117.9,5.09365402]
[1772720628359,5.23528426,2118.7,2118.0,5.09365402]
[1772720628562,5.23528426,2119.3,2118.1,3.90153331]
[1772720628762,5.23528426,2119.3,2118.3,5.09365402]
[1772720628962,5.23528426,2119.3,2118.4,11.55129865]
[1772720629159,5.23528426,2119.3,2118.4,23.081]
[1772720629567,5.23528426,2119.3,2118.5,6.2624503]
[1772720629768,5.23528426,2119.3,2118.4,23.081]
[1772720629969,5.23528426,2119.3,2118.5,6.26244341]
[1772720630172,5.23528426,2119.3,2118.4,28.28455352]
[1772720630365,5.23528426,2119.3,2118.5,6.26661468]
[1772720630567,5.23528426,2119.3,2118.4,28.28455352]
[1772720630866,5.23528426,2119.3,2118.5,6.26774585]
[1772720631170,5.23528426,2119.3,2118.6,6.27189666]
[1772720631365,5.23528426,2119.3,2118.4,28.28455352]
[1772720631564,5.23528426,2119.3,2118.5,6.27190174]
[1772720631764,5.23528426,2119.3,2118.6,6.27190174]
[1772720631970,5.23528426,2119.3,2118.4,28.32155352]
[1772720632170,5.23528426,2119.3,2118.5,6.27239761]
[1772720632361,5.23528426,2119.3,2118.4,23.123]
[1772720632760,5.23528426,2119.3,2118.3,28.37692801]
[1772720633166,5.23528426,2119.3,2118.3,32.28996225]
[1772720633772,5.23528426,2119.3,2118.4,5.24992801]
[1772720634470,5.4171509,2118.9,2117.6,5.24992801]
[1772720636276,5.4171509,2118.7,2117.4,5.24992801]
[1772720636475,5.4171509,2118.4,2117.4,5.24992801]
[1772720636674,5.4171509,2118.2,2117.4,5.24992801]
[1772720636875,5.4171509,2118.2,2117.2,5.24992801]
[1772720637176,5.4171509,2118.2,2117.2,5.25332778]
[1772720640382,5.4171509,2118.7,2117.4,5.24992801]
[1772720641376,5.4171509,2118.7,2117.6,5.24992801]
[1772720641572,13.563,2119.3,2116.4,5.88598655]
[1772720641573,2.59935362,2117.9,2116.4,5.88598655]
[1772720641782,2.59935362,2117.5,2116.4,5.24992801]
[1772720642680,2.60065545,2117.3,2116.4,5.25534015]
[1772720642886,2.60065545,2117.3,2116.4,0.00541214]
[1772720643783,3.22042255,2117.1,2116.2,5.24992801]
[1772720643978,3.22042255,2117.1,2115.6,23.19]
[1772720644282,3.22042255,2117.1,2115.7,5.24992801]
[1772720644479,3.22042255,2117.1,2115.9,5.24992801]
[1772720644681,3.22025466,2116.9,2115.9,5.24992801]
[1772720644984,3.22025466,2116.7,2115.9,0.00477413]
[1772720645385,3.22025466,2116.7,2115.3,23.195]
[1772720645386,3.22033387,2116.3,2115.5,5.24992801]
[1772720646282,3.23087711,2116.5,2115.5,5.2538798]
[1772720646480,3.46707711,2116.5,2115.5,5.2538798]
[1772720646782,0.31323162,2116.6,2115.3,5.24992801]
[1772720646783,3.22692933,2116.2,2115.3,5.24992801]
[1772720647286,3.22692933,2116.0,2114.6,5.24992801]
[1772720647481,3.26560017,2115.8,2114.6,5.24992801]
[1772720647685,3.2705656,2115.8,2114.6,5.25412386]
[1772720648282,3.26560017,2115.6,2114.6,5.25412386]
[1772720649383,3.26456599,2115.7,2114.6,5.25412386]
[1772720653388,3.58780444,2115.8,2114.6,5.25412386]
[1772720656391,3.35152444,2115.8,2114.6,5.25412386]
[1772720657691,0.00496543,2115.8,2114.8,5.24992801]
[1772720657892,3.85682015,2116.4,2115.0,5.24992801]
[1772720658993,3.86086829,2116.4,2115.0,5.24992801]
[1772720660296,3.62464829,2116.4,2115.2,5.85698223]
[1772720660893,0.00404814,2116.4,2115.2,5.85698223]
[1772720661090,0.00404814,2116.4,2115.4,5.85698223]
[1772720662291,3.5717567,2116.4,2115.4,5.85698223]
[1772720663392,0.00404814,2116.4,2115.4,5.85698223]
[1772720663592,3.65271956,2116.4,2115.4,5.85698223]
[1772720666897,0.00404814,2116.4,2115.6,5.74074648]
[1772720670502,3.80524633,2116.4,2115.6,5.74074648]
[1772720671501,0.00404814,2116.4,2115.6,5.74074648]
[1772720672102,3.92595714,2117.0,2115.8,5.74074648]
[1772720672398,3.92595714,2117.0,2116.0,5.74074648]
[1772720673103,3.93181665,2117.0,2116.0,5.74074648]
[1772720673898,0.00585951,2117.0,2116.0,5.74074648]
[1772720674095,0.00585951,2117.0,2116.2,5.74074648]
[1772720674307,3.86149113,2117.0,2116.2,5.74570233]
[1772720675505,0.00585951,2117.0,2116.2,5.74570233]
[1772720676299,3.88136516,2117.4,2116.2,5.74570233]
[1772720677304,3.88708915,2117.4,2116.2,5.74570233]
[1772720678799,3.84593257,2117.0,2116.2,5.74570233]
[1772720679198,0.23613,2117.1,2116.2,5.74570233]
[1772720679400,4.07854915,2117.1,2116.2,5.74570233]
[1772720679602,3.84603078,2117.3,2116.2,5.74570233]
[1772720680401,3.84244915,2117.1,2116.2,5.74570233]
[1772720681504,0.23612,2117.2,2116.2,5.74570233]
[1772720681703,4.07004152,2117.2,2116.2,5.74570233]
[1772720682503,3.83586809,2117.4,2116.2,5.74570233]
[1772720684104,3.83586809,2117.4,2116.4,5.74074648]
[1772720684401,3.83586809,2117.4,2116.5,5.74074648]
[1772720687207,0.00572399,2117.4,2116.6,5.74074648]
[1772720688308,7.69718538,2117.9,2116.8,5.74074648]
[1772720688507,3.80910915,2117.9,2116.8,5.74074648]
[1772720688906,3.80231745,2118.1,2117.0,5.65421901]
[1772720689107,0.23602,2118.2,2117.0,5.65421901]
[1772720689307,4.05225014,2118.2,2117.0,5.65421901]
[1772720695711,3.79674961,2117.7,2116.8,5.65421901]
[1772720695914,3.79674961,2117.5,2116.8,5.65421901]
[1772720700306,3.76264959,2117.7,2116.8,5.65421901]
[1772720700504,3.76262855,2117.9,2116.8,5.65421901]
[1772720702914,3.76262855,2117.9,2116.8,9.54721901]
[1772720703111,0.23603,2118.0,2116.9,5.65421901]
[1772720704106,3.73898154,2118.1,2117.0,5.65421901]
[1772720706011,0.00569857,2118.2,2117.0,9.8109084]
[1772720706311,3.76667689,2118.7,2117.5,5.65421901]
[1772720706916,3.76667689,2118.7,2117.6,5.65421901]
[1772720707316,3.77012342,2118.7,2117.6,5.65421901]
[1772720707815,3.77012342,2118.7,2117.7,5.65421901]
[1772720708015,3.77012342,2118.7,2117.7,5.65816072]
[1772720708413,3.73846726,2119.1,2117.9,5.65421901]
[1772720709213,3.97437726,2119.1,2117.9,5.65421901]
[1772720709412,3.9777005,2119.1,2117.9,5.65421901]
[1772720710413,4.00766504,2118.8,2117.9,5.65421901]
[1772720716622,7.57408959,2119.0,2117.9,5.65421901]
[1772720716823,3.68601336,2118.9,2117.9,5.65421901]
[1772720720430,3.92194336,2118.9,2117.9,5.65421901]
[1772720722530,0.23597,2118.6,2117.9,5.65421901]
[1772720722726,3.66856094,2118.5,2117.9,5.65421901]
[1772720724836,0.23597,2118.6,2117.9,5.65421901]
[1772720725036,3.61045563,2118.9,2117.9,5.65421901]
[1772720726035,3.60256794,2118.7,2117.9,5.65421901]
[1772720729040,3.60256794,2118.7,2118.0,5.65255269]
[1772720730846,3.51713755,2118.9,2118.0,5.65255269]
[1772720731845,3.75307755,2118.9,2118.0,5.65255269]
[1772720733147,7.64115378,2118.9,2118.0,5.65255269]
[1772720733348,3.45584031,2118.8,2118.0,5.65255269]
[1772720734344,4.12401623,2118.9,2118.0,5.65255269]
[1772720734546,7.34193352,2118.9,2118.0,5.65255269]
[1772720734841,7.34525676,2119.1,2118.0,9.57310208]
[1772720735047,7.34525676,2119.1,2118.2,5.65255269]
[1772720736448,7.34525676,2119.1,2118.3,5.65255269]
[1772720736651,3.89139947,2119.1,2118.3,5.65255269]
[1772720736950,0.00332324,2119.1,2118.3,5.65255269]
[1772720740650,3.45690093,2119.1,2118.3,5.65255269]
[1772720743755,3.49517516,2118.9,2118.3,5.65255269]
[1772720746747,0.00332324,2119.1,2118.3,5.65255269]
[1772720747153,0.00332324,2119.1,2118.4,5.65255269]
[1772720747454,0.00332324,2119.1,2118.5,5.65255269]
[1772720748252,3.43262268,2119.1,2118.4,9.54555269]
[1772720750362,0.00332324,2119.1,2118.5,5.36519622]
[1772720750654,0.23585,2119.7,2118.6,5.36519622]
[1772720750655,5.74156753,2119.7,2118.6,5.36519622]
[1772720751557,0.00356632,2119.7,2118.7,9.28574561]
[1772720751759,0.00356632,2119.7,2118.8,9.28574561]
[1772720752062,0.00356632,2119.7,2118.9,5.36519622]
[1772720752461,7.3797698,2120.4,2119.0,5.36519622]
[1772720752462,5.74156753,2120.3,2119.0,5.36519622]
[1772720752760,5.74156753,2120.3,2119.1,5.36519622]
[1772720753153,5.74156753,2120.3,2119.2,5.36519622]
[1772720753352,5.74649193,2120.3,2119.2,5.37066173]
[1772720754662,5.74649193,2120.3,2119.4,5.36519622]
[1772720754663,0.0049244,2120.3,2119.4,5.36519622]
[1772720756066,5.74156753,2120.2,2119.4,5.36519622]
[1772720756456,0.0049244,2120.3,2119.4,5.36519622]
[1772720757166,5.74649193,2120.3,2119.4,5.36519622]
[1772720758567,0.0049244,2120.3,2119.4,5.36519622]
[1772720759466,5.74649193,2120.3,2119.4,5.36519622]
[1772720762269,5.74156753,2120.1,2119.2,0.00546551]
[1772720762462,5.74156753,2120.1,2119.1,5.36519622]
[1772720762463,5.74156753,2120.1,2118.5,5.36519622]
[1772720762666,5.74156753,2119.9,2118.5,5.36519622]
[1772720762861,5.74156753,2119.5,2118.5,5.36519622]
[1772720763366,5.74156753,2119.5,2118.5,5.36885244]
[1772720764771,5.74156753,2119.3,2118.5,5.36885244]
[1772720765170,5.74156753,2119.5,2118.5,5.36885244]
[1772720766075,5.74156753,2119.3,2118.5,5.36885244]
[1772720768670,0.23588,2119.4,2118.5,5.36885244]
[1772720768874,5.97743753,2119.5,2118.5,5.36885244]
[1772720769671,5.74156753,2119.2,2118.3,4.90567304]
[1772720770577,5.74156753,2119.2,2118.3,4.90978223]
[1772720771778,5.74156753,2119.0,2118.3,4.90978223]
[1772720773871,5.74156753,2119.0,2118.3,0.00410919]
[1772720775182,5.74156753,2119.0,2118.3,5.23261802]
[1772720775877,5.74156753,2119.5,2118.3,5.23261802]
[1772720777778,5.74156753,2119.3,2118.3,5.23261802]
[1772720778577,5.74156753,2119.1,2118.3,0.00410919]
[1772720778979,5.74156753,2119.1,2118.3,5.21883234]
[1772720783481,5.91653196,2118.9,2118.3,0.00410919]
[1772720783883,5.91653196,2118.7,2118.1,5.20967612]
[1772720784787,5.92026398,2118.7,2118.1,5.21442835]
[1772720786888,0.00373202,2118.7,2118.1,5.21442835]
[1772720787589,6.38190575,2118.9,2118.1,5.21442835]
[1772720788590,6.3859989,2118.9,2118.1,5.21442835]
[1772720789185,6.3859989,2118.9,2118.3,5.20050172]
[1772720790488,0.00409315,2118.9,2118.3,5.20050172]
[1772720790692,6.3859989,2118.9,2118.3,5.20050172]
[1772720792097,6.3859989,2118.9,2118.4,5.17971855]
[1772720793794,6.38190575,2119.2,2118.4,5.17971855]
[1772720794790,6.38623544,2119.2,2118.4,5.17971855]
[1772720795097,6.38190575,2119.0,2118.2,9.05932192]
[1772720796893,6.38190575,2119.0,2118.2,3.893]
[1772720796894,6.61783575,2119.0,2118.2,3.893]
[1772720797298,6.61783575,2119.0,2118.2,9.03315215]
[1772720798099,6.61783575,2119.0,2118.2,5.14015215]
[1772720800803,6.61783575,2119.0,2118.1,0.00475223]
[1772720801002,6.61783575,2119.0,2118.1,5.12837305]
[1772720801205,6.61783575,2119.0,2118.2,5.12362082]
[1772720803409,6.61783575,2119.0,2118.1,3.89775223]
[1772720803603,6.38190575,2118.7,2118.1,0.00475223]
[1772720803801,6.61786575,2118.6,2117.7,5.06185583]
[1772720804002,6.38190575,2118.2,2117.3,5.06185583]
[1772720804302,6.61791575,2118.2,2117.3,5.06185583]
[1772720804903,6.61791575,2118.2,2117.3,0.00530353]
[1772720805303,6.61791575,2118.2,2117.3,5.0572057]
[1772720808207,6.61791575,2118.2,2117.3,0.00530353]
[1772720808412,6.61791575,2118.2,2116.7,4.95220975]
[1772720808413,6.38190575,2117.9,2116.7,4.95220975]
[1772720809310,6.38190575,2117.9,2116.7,4.95627734]
[1772720813209,6.38190575,2117.9,2116.8,3.893]
[1772720813415,6.38190575,2117.9,2116.9,4.93234555]
[1772720816118,6.38190575,2117.9,2117.0,3.893]
[1772720816320,6.38190575,2117.9,2117.1,4.8868854]
[1772720818822,6.38190575,2117.9,2116.9,4.80895399]
[1772720819719,6.05303128,2118.2,2117.3,4.8156193]
[1772720821915,6.05303128,2118.0,2117.1,3.893]
[1772720822118,6.05303128,2118.0,2117.2,4.83302141]
[1772720825125,6.05303128,2118.0,2117.3,4.78580837]
[1772720827221,6.05303128,2117.8,2116.9,4.7650563]
[1772720830730,6.05303128,2117.5,2116.7,5.06346523]
[1772720830923,6.05850656,2117.5,2116.7,5.06346523]
[1772720834630,0.00547528,2117.5,2116.7,5.06346523]
[1772720835521,6.05850656,2117.5,2116.7,5.06346523]
[1772720837225,6.05850656,2117.5,2116.9,4.84194738]
[1772720838435,0.00547528,2117.5,2116.9,4.84194738]
[1772720838636,6.05850656,2117.5,2116.9,4.84194738]
[1772720840133,6.05850656,2117.5,2116.9,8.73494738]
[1772720840333,6.05850656,2117.5,2117.0,4.78572384]
[1772720841937,3.95223128,2118.0,2117.2,4.78244055]
[1772720842139,6.13827874,2118.0,2117.3,4.78244055]
[1772720842640,6.37430874,2118.0,2117.0,4.77238137]
[1772720842841,6.13827874,2117.9,2117.0,4.77238137]
[1772720843041,6.14269055,2117.9,2117.0,4.77238137]
[1772720846335,0.00441181,2117.9,2117.0,4.77238137]
[1772720846535,6.03638022,2117.9,2117.0,4.77238137]
[1772720848134,6.03638022,2117.9,2116.9,10.55855507]
[1772720848337,6.03638022,2117.9,2117.0,4.66457693]
[1772720848636,6.03196841,2117.7,2117.0,4.66457693]
[1772720849232,6.03196841,2117.7,2116.8,4.65465506]
[1772720849638,6.03196841,2117.5,2116.7,0.00406759]
[1772720849840,6.03196841,2117.3,2116.7,0.00406759]
[1772720850141,6.03196841,2117.1,2116.1,4.09624997]
[1772720850349,6.03196841,2117.0,2115.9,4.08637975]
[1772720850536,6.03196841,2116.9,2115.9,4.08637975]
[1772720850936,6.03196841,2116.9,2115.9,4.09098855]
[1772720852032,6.03196841,2116.9,2116.1,4.21842413]
[1772720860344,6.26812841,2116.9,2115.9,4.17117943]
[1772720860754,6.26814841,2116.7,2115.6,4.16681507]
[1772720861642,6.26814841,2116.7,2115.1,4.14999593]
[1772720861840,6.26814841,2116.7,2115.1,4.15355391]
[1772720863052,6.26814841,2116.7,2115.3,4.11829744]
[1772720863351,6.26814841,2116.7,2115.5,4.11829744]
[1772720865353,6.26814841,2116.7,2115.6,4.27646022]
[1772720865354,6.03196841,2116.7,2115.6,4.27646022]
[1772720867959,6.03196841,2116.5,2115.6,4.04016022]
[1772720868159,6.03196841,2116.5,2115.3,3.90021127]
[1772720868352,6.03196841,2116.3,2115.3,3.90021127]
[1772720868552,6.03644887,2116.3,2115.3,3.90021127]
[1772720870155,6.03644887,2116.3,2115.5,3.80948956]
[1772720871465,0.00448046,2116.3,2115.5,3.80948956]
[1772720871660,5.8372595,2116.1,2115.2,3.79450881]
[1772720876268,5.8372595,2116.1,2115.3,3.68063954]
[1772720879469,5.8372595,2116.1,2115.1,0.00355798]
[1772720880068,5.8372595,2115.9,2115.1,0.00355798]
[1772720880272,5.8372595,2115.5,2114.4,3.52623569]
[1772720880877,5.8372595,2115.5,2114.4,3.76266569]
[1772720881276,5.8372595,2115.5,2114.4,3.76864324]
[1772720881977,5.8372595,2115.5,2114.4,0.00597755]
[1772720882177,5.8372595,2115.4,2114.4,3.7626772]
[1772720884175,5.8372595,2115.4,2114.6,3.64340248]
[1772720885281,5.8372595,2115.4,2114.4,3.59618806]
[1772720885580,5.8372595,2115.4,2114.6,3.52252892]
[1772720886478,5.8372595,2115.4,2114.7,21.282]
[1772720886672,5.8372595,2115.4,2114.8,3.49658467]
[1772720887471,5.8372595,2115.4,2114.9,21.29]
[1772720887675,5.8372595,2115.4,2114.9,24.76448242]
[1772720888581,5.8372595,2115.6,2115.0,3.44849072]
[1772720889582,5.8372595,2115.6,2115.0,24.75249072]
[1772720892185,5.8372595,2116.0,2115.1,3.41609458]
[1772720893185,5.8372595,2116.0,2115.3,3.39134603]
[1772720893382,5.8372595,2116.0,2115.3,24.71634603]
[1772720893576,5.8372595,2116.0,2115.4,3.14517512]
[1772720896386,5.8372595,2116.0,2115.5,21.336]
[1772720897784,5.8372595,2116.0,2115.0,3.04411634]
[1772720897986,5.8372595,2116.0,2115.1,3.04411634]
[1772720898189,5.8372595,2116.0,2115.2,21.34]
[1772720898384,5.8372595,2116.0,2115.2,24.36021741]
[1772720898780,5.8372595,2116.0,2115.2,3.02021741]
[1772720899090,5.8372595,2116.0,2115.2,24.36221741]
[1772720900285,5.8372595,2116.0,2115.3,2.97243441]
[1772720900886,5.8372595,2116.0,2115.1,2.97322886]
[1772720901093,5.8372595,2116.0,2115.3,2.97322886]
[1772720902189,5.41415708,2115.8,2114.8,24.37668244]
[1772720902385,5.41415708,2115.6,2114.8,24.37668244]
[1772720902595,5.41415708,2115.6,2114.9,3.00936274]
[1772720902791,5.41415708,2115.9,2114.9,3.00936274]
[1772720902992,5.41415708,2115.7,2114.9,3.00936274]
[1772720903991,5.41415708,2116.0,2114.9,3.24573274]
[1772720905488,5.41415708,2116.0,2115.0,21.356]
[1772720905687,5.41415708,2115.8,2115.1,21.357]
[1772720905993,5.41415708,2115.8,2115.1,24.28652834]
[1772720907492,5.41415708,2115.8,2115.2,2.87545781]
[1772720909499,5.41415708,2115.8,2115.1,24.16026834]
[1772720909995,5.41415708,2115.8,2115.2,2.80422298]
[1772720912995,3.92054384,2116.2,2115.2,2.80422298]
[1772720913293,5.46268209,2116.3,2115.3,2.97523566]
[1772720913698,0.00448046,2116.3,2115.3,8.91010551]
[1772720913899,0.00448046,2116.3,2115.4,2.74773074]
[1772720914099,5.46268209,2116.3,2115.4,2.74773074]
[1772720914702,0.00448046,2116.3,2115.6,2.72761368]
[1772720914903,0.00448046,2116.3,2115.8,2.72761368]
[1772720915095,5.45820163,2116.5,2115.8,2.72761368]
[1772720915699,5.45820163,2116.8,2115.8,2.72761368]
[1772720916100,5.46275813,2116.8,2115.8,2.72761368]
[1772720918799,5.46275813,2116.8,2115.9,24.14232748]
[1772720919101,5.46275813,2116.8,2116.0,2.66632748]
[1772720920598,5.46275813,2116.8,2116.1,21.486]
[1772720920798,5.46275813,2116.8,2116.2,2.62623851]
[1772720921698,5.46275813,2116.8,2116.3,21.492]
[1772720924998,5.46275813,2116.8,2116.1,6.44379945]
[1772720925204,5.46275813,2116.8,2116.3,21.523]
[1772720925909,1.07947645,2116.8,2116.3,23.94038513]
[1772720926105,1.07947645,2116.8,2116.4,5.04309456]
[1772720930810,4.91508849,2117.1,2116.4,5.04309456]
[1772720931014,4.91508849,2117.1,2116.3,21.523]
[1772720931015,4.91508849,2117.7,2116.6,5.33571527]
[1772720931214,4.91508849,2117.7,2116.8,5.33571527]
[1772720931512,4.91508849,2117.7,2117.0,5.33571527]
[1772720931712,4.91947,2117.7,2117.0,5.33571527]
[1772720932915,4.91508849,2117.5,2116.7,5.33571527]
[1772720933108,4.91508849,2117.5,2116.9,21.62]
[1772720935118,4.91508849,2117.5,2116.9,26.95571527]
[1772720935915,4.91508849,2117.5,2117.0,5.33571527]
[1772720936117,4.91508849,2117.5,2116.9,21.62]
[1772720936316,4.91508849,2117.5,2116.9,5.33571527]
[1772720936517,4.91508849,2117.5,2116.9,26.98771527]
[1772720936817,4.91508849,2117.5,2116.9,21.652]
[1772720938011,4.91508849,2117.5,2116.5,5.33571527]
[1772720938220,4.91508849,2117.3,2116.6,27.00071527]
[1772720938408,4.91508849,2117.3,2116.1,3.893]
[1772720938609,4.91508849,2117.3,2116.2,21.668]
[1772720938920,4.91508849,2117.3,2116.4,5.33571527]
[1772720940218,4.91508849,2117.1,2116.4,5.33571527]